[Event "Open Nuevo Centro. Jornada 1"]
[Site "Chess.com"]
[Date "2020.06.19"]
[Round "9"]
[White "Salvador Buiza, Victor"]
[Black "Donate Moreno, Silvia"]
[Result "1/2-1/2"]
[WhiteElo "1574"]
[BlackElo "1778"]
[TimeControl "180+2"]
[EndTime "12:16:23 PDT"]
[Termination "Tablas por rey ahogado"]

1. e4 {[%clk 0:03:01.9]} 1... c5 {[%clk 0:02:59.9]} 2. Nf3 {[%clk 0:03:02.7]}
2... d6 {[%clk 0:03:00]} 3. Bb5+ {[%clk 0:03:03.3]} 3... Bd7 {[%clk 0:03:00.2]}
4. Bxd7+ {[%clk 0:03:03.8]} 4... Qxd7 {[%clk 0:03:01]} 5. c4 {[%clk 0:03:04.2]}
5... Nf6 {[%clk 0:03:01]} 6. Nc3 {[%clk 0:03:05.1]} 6... Nc6 {[%clk 0:02:56.9]}
7. d4 {[%clk 0:03:04.2]} 7... cxd4 {[%clk 0:02:54.9]} 8. Nxd4 {[%clk 0:03:04.1]}
8... Nxd4 {[%clk 0:02:54.3]} 9. Qxd4 {[%clk 0:03:04.3]} 9... g6 {[%clk 0:02:55]}
10. Nd5 {[%clk 0:02:57.1]} 10... Bg7 {[%clk 0:02:53.8]} 11. Nxf6+ {[%clk
0:02:54.2]} 11... Bxf6 {[%clk 0:02:54]} 12. Qd3 {[%clk 0:02:54.5]} 12... O-O
{[%clk 0:02:49.8]} 13. O-O {[%clk 0:02:52.2]} 13... Rac8 {[%clk 0:02:48.2]} 14.
Rb1 {[%clk 0:02:50.5]} 14... Qc6 {[%clk 0:02:35.1]} 15. b3 {[%clk 0:02:47.7]}
15... Qa6 {[%clk 0:02:22.7]} 16. Bb2 {[%clk 0:02:42]} 16... Bxb2 {[%clk
0:02:11.1]} 17. Rxb2 {[%clk 0:02:42.5]} 17... Rc5 {[%clk 0:02:11.8]} 18. Rc2
{[%clk 0:02:34.8]} 18... Rfc8 {[%clk 0:01:52.6]} 19. Rfc1 {[%clk 0:02:34.9]}
19... Qb6 {[%clk 0:01:23.7]} 20. a3 {[%clk 0:02:29.6]} 20... a5 {[%clk
0:01:24.3]} 21. Qc3 {[%clk 0:02:18.8]} 21... Re5 {[%clk 0:01:13.9]} 22. Qd3
{[%clk 0:02:00.3]} 22... Qc6 {[%clk 0:01:01.9]} 23. Re1 {[%clk 0:01:38.2]} 23...
Qc5 {[%clk 0:00:49.8]} 24. a4 {[%clk 0:01:24.5]} 24... Qb4 {[%clk 0:00:50]} 25.
Re3 {[%clk 0:01:15.2]} 25... Rec5 {[%clk 0:00:40.8]} 26. Qc3 {[%clk 0:01:07]}
26... Qb6 {[%clk 0:00:35.7]} 27. h3 {[%clk 0:00:56.3]} 27... Qc6 {[%clk
0:00:35.2]} 28. Rd2 {[%clk 0:00:34]} 28... Qd7 {[%clk 0:00:20.2]} 29. Rd5 {[%clk
0:00:33.2]} 29... Qe6 {[%clk 0:00:19]} 30. Rxc5 {[%clk 0:00:31.3]} 30... Rxc5
{[%clk 0:00:19.7]} 31. Qd4 {[%clk 0:00:29.3]} 31... Qe5 {[%clk 0:00:19.7]} 32.
Rd3 {[%clk 0:00:21]} 32... Qxd4 {[%clk 0:00:19.3]} 33. Rxd4 {[%clk 0:00:21.9]}
33... Kg7 {[%clk 0:00:20.3]} 34. f4 {[%clk 0:00:22.8]} 34... Kf6 {[%clk
0:00:19.8]} 35. Kf2 {[%clk 0:00:23.6]} 35... Rc7 {[%clk 0:00:20.1]} 36. Ke3
{[%clk 0:00:24.3]} 36... Ke6 {[%clk 0:00:20.7]} 37. g4 {[%clk 0:00:24.4]} 37...
f5 {[%clk 0:00:20.5]} 38. Rd5 {[%clk 0:00:23.5]} 38... fxe4 {[%clk 0:00:20.2]}
39. Rxa5 {[%clk 0:00:23.6]} 39... Rc6 {[%clk 0:00:18.9]} 40. Kxe4 {[%clk
0:00:24.3]} 40... Rb6 {[%clk 0:00:18]} 41. Rb5 {[%clk 0:00:24.5]} 41... Rxb5
{[%clk 0:00:17.7]} 42. axb5 {[%clk 0:00:25.8]} 42... Kd7 {[%clk 0:00:17.6]} 43.
f5 {[%clk 0:00:24.6]} 43... e5 {[%clk 0:00:17.2]} 44. fxe6+ {[%clk 0:00:24]}
44... Kxe6 {[%clk 0:00:19.1]} 45. h4 {[%clk 0:00:25.3]} 45... h6 {[%clk
0:00:18.6]} 46. b4 {[%clk 0:00:24.7]} 46... b6 {[%clk 0:00:18.3]} 47. Kd4 {[%clk
0:00:22.4]} 47... h5 {[%clk 0:00:17.5]} 48. gxh5 {[%clk 0:00:20.6]} 48... gxh5
{[%clk 0:00:18.2]} 49. Ke4 {[%clk 0:00:22]} 49... Ke7 {[%clk 0:00:15.6]} 50. Kd5
{[%clk 0:00:22.9]} 50... Kd7 {[%clk 0:00:16.4]} 51. c5 {[%clk 0:00:22]} 51...
dxc5 {[%clk 0:00:17.2]} 52. bxc5 {[%clk 0:00:22.9]} 52... bxc5 {[%clk 0:00:18]}
53. Kxc5 {[%clk 0:00:24.3]} 53... Kc7 {[%clk 0:00:19.2]} 54. b6+ {[%clk
0:00:25.3]} 54... Kb7 {[%clk 0:00:20.2]} 55. Kb5 {[%clk 0:00:26.7]} 55... Kb8
{[%clk 0:00:21]} 56. Kc6 {[%clk 0:00:27.6]} 56... Kc8 {[%clk 0:00:21.9]} 57. Kd6
{[%clk 0:00:28.6]} 57... Kb7 {[%clk 0:00:22.6]} 58. Ke6 {[%clk 0:00:29.7]} 58...
Kxb6 {[%clk 0:00:23.9]} 59. Kf6 {[%clk 0:00:31.1]} 59... Kc7 {[%clk 0:00:25.2]}
60. Kg5 {[%clk 0:00:32.5]} 60... Kd7 {[%clk 0:00:26.4]} 61. Kxh5 {[%clk
0:00:33.9]} 61... Ke7 {[%clk 0:00:27.2]} 62. Kg6 {[%clk 0:00:35.2]} 62... Kf8
{[%clk 0:00:28.2]} 63. Kh7 {[%clk 0:00:36.6]} 63... Kf7 {[%clk 0:00:28.5]} 64.
h5 {[%clk 0:00:38]} 64... Kf8 {[%clk 0:00:28.4]} 65. h6 {[%clk 0:00:37.4]} 65...
Kf7 {[%clk 0:00:28.8]} 66. Kh8 {[%clk 0:00:39.3]} 66... Kf8 {[%clk 0:00:29.4]}
67. Kh7 {[%clk 0:00:40.5]} 67... Kf7 {[%clk 0:00:28.8]} 68. Kh8 {[%clk
0:00:41.8]} 68... Kf8 {[%clk 0:00:29.4]} 69. h7 {[%clk 0:00:42.9]} 69... Kf7
{[%clk 0:00:29.5]} 1/2-1

[Event "Open Nuevo Centro. Jornada 1"]
[Site "Chess.com"]
[Date "2020.06.19"]
[Round "9"]
[White "Yatseta Fernandez, Marc Kazymyr"]
[Black "Rodriguez Rodriguez, Joan David "]
[Result "1-0"]
[WhiteElo "1409"]
[BlackElo "1612"]
[TimeControl "180+2"]
[EndTime "12:16:24 PDT"]
[Termination "Victoria de K_73 por jaque mate"]

1. d4 {[%clk 0:02:56.9]} 1... d5 {[%clk 0:03:00.8]} 2. c4 {[%clk 0:02:58.2]}
2... e6 {[%clk 0:03:01.1]} 3. g3 {[%clk 0:02:59.6]} 3... Nf6 {[%clk 0:02:58.1]}
4. Bg2 {[%clk 0:03:00.8]} 4... c6 {[%clk 0:02:58.2]} 5. Nf3 {[%clk 0:03:02.2]}
5... dxc4 {[%clk 0:02:59.1]} 6. O-O {[%clk 0:03:03.1]} 6... Bd6 {[%clk
0:02:54.5]} 7. Be3 {[%clk 0:03:02.4]} 7... O-O {[%clk 0:02:54.6]} 8. Nbd2 {[%clk
0:03:02.1]} 8... b5 {[%clk 0:02:52.9]} 9. a4 {[%clk 0:03:00.9]} 9... Bd7 {[%clk
0:02:52.9]} 10. axb5 {[%clk 0:02:54.6]} 10... cxb5 {[%clk 0:02:51.5]} 11. Ne5
{[%clk 0:02:48.1]} 11... Bxe5 {[%clk 0:02:37.3]} 12. Bxa8 {[%clk 0:02:46.3]}
12... Bd6 {[%clk 0:02:36.6]} 13. Bg2 {[%clk 0:02:45.3]} 13... Bc6 {[%clk
0:02:37.2]} 14. Bxc6 {[%clk 0:02:44.3]} 14... Nxc6 {[%clk 0:02:37.9]} 15. Qc2
{[%clk 0:02:38.6]} 15... a5 {[%clk 0:02:38]} 16. Rfc1 {[%clk 0:02:28.8]} 16...
Nd5 {[%clk 0:02:21.2]} 17. Nf1 {[%clk 0:02:17.3]} 17... Qb6 {[%clk 0:02:09]} 18.
Rd1 {[%clk 0:01:52.1]} 18... Be7 {[%clk 0:01:58.1]} 19. h3 {[%clk 0:01:45.1]}
19... Bf6 {[%clk 0:01:58.5]} 20. Nh2 {[%clk 0:01:37.6]} 20... Nxd4 {[%clk
0:01:39.5]} 21. Bxd4 {[%clk 0:01:36.9]} 21... Bxd4 {[%clk 0:01:39.4]} 22. e3
{[%clk 0:01:25.8]} 22... Bf6 {[%clk 0:01:32.6]} 23. Nf3 {[%clk 0:01:16.9]} 23...
Rc8 {[%clk 0:01:29.1]} 24. Nd4 {[%clk 0:01:13.9]} 24... Nb4 {[%clk 0:01:04.5]}
25. Qd2 {[%clk 0:01:05.4]} 25... Ra8 {[%clk 0:00:42.5]} 26. b3 {[%clk
0:00:50.5]} 26... cxb3 {[%clk 0:00:35.8]} 27. Rab1 {[%clk 0:00:23.7]} 27... g6
{[%clk 0:00:18.4]} 28. Nxb3 {[%clk 0:00:19]} 28... Rc8 {[%clk 0:00:12.7]} 29.
Rbc1 {[%clk 0:00:16.3]} 29... Rd8 {[%clk 0:00:11.3]} 30. Qe2 {[%clk 0:00:10.3]}
30... a4 {[%clk 0:00:10.7]} 31. Nd4 {[%clk 0:00:09.4]} 31... Qa5 {[%clk
0:00:09.9]} 32. Rc5 {[%clk 0:00:06.3]} 32... Rb8 {[%clk 0:00:08.8]} 33. Rxb5
{[%clk 0:00:05.8]} 33... Rxb5 {[%clk 0:00:08.1]} 34. Qxb5 {[%clk 0:00:04.6]}
34... Qxb5 {[%clk 0:00:06.5]} 35. Nxb5 {[%clk 0:00:06.5]} 35... Kg7 {[%clk
0:00:05.2]} 36. Rd2 {[%clk 0:00:05.5]} 36... Be7 {[%clk 0:00:04.4]} 37. Rb2
{[%clk 0:00:05.2]} 37... Nd5 {[%clk 0:00:04.7]} 38. Rb1 {[%clk 0:00:04.2]} 38...
a3 {[%clk 0:00:05.5]} 39. Ra1 {[%clk 0:00:03.1]} 39... Nc3 {[%clk 0:00:03.8]}
40. Nxc3 {[%clk 0:00:03.4]} 40... f5 {[%clk 0:00:03.7]} 41. Ra2 {[%clk
0:00:03.2]} 41... Kf6 {[%clk 0:00:04.4]} 42. Nb5 {[%clk 0:00:04]} 42... Bb4
{[%clk 0:00:03.6]} 43. Nxa3 {[%clk 0:00:05.9]} 43... Bxa3 {[%clk 0:00:05]} 44.
Rxa3 {[%clk 0:00:06.5]} 44... h6 {[%clk 0:00:06.9]} 45. Ra6 {[%clk 0:00:07.1]}
45... g5 {[%clk 0:00:08.3]} 46. f4 {[%clk 0:00:07.8]} 46... g4 {[%clk
0:00:08.3]} 47. hxg4 {[%clk 0:00:07.5]} 47... fxg4 {[%clk 0:00:10.2]} 48. Kf2
{[%clk 0:00:08.7]} 48... h5 {[%clk 0:00:11.4]} 49. Ke2 {[%clk 0:00:09.4]} 49...
Kf5 {[%clk 0:00:12]} 50. Ra5+ {[%clk 0:00:09.6]} 50... Kf6 {[%clk 0:00:12.3]}
51. e4 {[%clk 0:00:09.9]} 51... Kg6 {[%clk 0:00:13.2]} 52. Ke3 {[%clk
0:00:10.4]} 52... Kf6 {[%clk 0:00:13.9]} 53. f5 {[%clk 0:00:09.9]} 53... exf5
{[%clk 0:00:13.7]} 54. Rxf5+ {[%clk 0:00:11.8]} 54... Kg6 {[%clk 0:00:15.1]} 55.
Kf4 {[%clk 0:00:12.3]} 55... Kh6 {[%clk 0:00:15.2]} 56. e5 {[%clk 0:00:12.7]}
56... Kg6 {[%clk 0:00:13.6]} 57. e6 {[%clk 0:00:13.3]} 57... h4 {[%clk
0:00:14.7]} 58. gxh4 {[%clk 0:00:13.5]} 58... g3 {[%clk 0:00:15.9]} 59. Rg5+
{[%clk 0:00:13.9]} 59... Kh6 {[%clk 0:00:16.7]} 60. Rxg3 {[%clk 0:00:15.8]}
60... Kh5 {[%clk 0:00:17.7]} 61. e7 {[%clk 0:00:15.9]} 61... Kxh4 {[%clk
0:00:17.4]} 62. Rg4+ {[%clk 0:00:16]} 62... Kh3 {[%clk 0:00:16.5]} 63. e8=Q
{[%clk 0:00:16.9]} 63... Kh2 {[%clk 0:00:17.3]} 64. Qh5# {[%clk 0:00:17.4]} 1

[Event "Open Nuevo Centro. Jornada 1"]
[Site "Chess.com"]
[Date "2020.06.19"]
[Round "9"]
[White "Deusa Ballesteros, Luis Miguel"]
[Black "Mart�nez Carvajal, Juan Francisco"]
[Result "1-0"]
[WhiteElo "1502"]
[BlackElo "1732"]
[TimeControl "180+2"]
[EndTime "12:17:01 PDT"]
[Termination "Victoria de luma2 por tiempo"]

1. Nf3 {[%clk 0:02:54.1]} 1... c5 {[%clk 0:02:54.4]} 2. g3 {[%clk 0:02:54.7]}
2... d5 {[%clk 0:02:53.2]} 3. Bg2 {[%clk 0:02:54.6]} 3... Nc6 {[%clk 0:02:54.3]}
4. d3 {[%clk 0:02:55.1]} 4... Nf6 {[%clk 0:02:52.7]} 5. Nbd2 {[%clk 0:02:55.7]}
5... e5 {[%clk 0:02:53.3]} 6. O-O {[%clk 0:02:56]} 6... Bd6 {[%clk 0:02:51.2]}
7. e4 {[%clk 0:02:56.6]} 7... d4 {[%clk 0:02:50.6]} 8. a4 {[%clk 0:02:55.8]}
8... O-O {[%clk 0:02:50.5]} 9. Nc4 {[%clk 0:02:56.3]} 9... Bc7 {[%clk
0:02:49.3]} 10. Nh4 {[%clk 0:02:54.7]} 10... Na5 {[%clk 0:02:36.9]} 11. Nxa5
{[%clk 0:02:49.6]} 11... Bxa5 {[%clk 0:02:37.1]} 12. f4 {[%clk 0:02:49.9]} 12...
Bg4 {[%clk 0:02:29.4]} 13. Nf3 {[%clk 0:02:36.1]} 13... exf4 {[%clk 0:02:27.7]}
14. Bxf4 {[%clk 0:02:33.9]} 14... Qc8 {[%clk 0:02:22]} 15. Bd2 {[%clk
0:02:24.4]} 15... Bxd2 {[%clk 0:02:08.2]} 16. Qxd2 {[%clk 0:02:26.3]} 16... Qc7
{[%clk 0:01:43.4]} 17. Qg5 {[%clk 0:02:03.7]} 17... Rae8 {[%clk 0:01:35.6]} 18.
h3 {[%clk 0:01:40.5]} 18... Bd7 {[%clk 0:01:22.5]} 19. Qf4 {[%clk 0:01:22.1]}
19... Qb6 {[%clk 0:01:01.4]} 20. b3 {[%clk 0:01:11.7]} 20... Nh5 {[%clk
0:00:56.5]} 21. Qg5 {[%clk 0:01:06.8]} 21... Nf6 {[%clk 0:00:47.1]} 22. Ne5
{[%clk 0:00:57.6]} 22... Bc8 {[%clk 0:00:43.5]} 23. Nc4 {[%clk 0:00:42.9]} 23...
Qe6 {[%clk 0:00:42.2]} 24. Rf2 {[%clk 0:00:41.5]} 24... h6 {[%clk 0:00:42.6]}
25. Qh4 {[%clk 0:00:25.8]} 25... Nh7 {[%clk 0:00:35.1]} 26. Raf1 {[%clk
0:00:24.2]} 26... Ng5 {[%clk 0:00:35.5]} 27. g4 {[%clk 0:00:22.4]} 27... a6
{[%clk 0:00:30.7]} 28. Qg3 {[%clk 0:00:21.4]} 28... b5 {[%clk 0:00:29.7]} 29.
axb5 {[%clk 0:00:21]} 29... axb5 {[%clk 0:00:30.7]} 30. Nd2 {[%clk 0:00:22.2]}
30... Qe5 {[%clk 0:00:18.6]} 31. Qxe5 {[%clk 0:00:21.4]} 31... Rxe5 {[%clk
0:00:19.9]} 32. Nf3 {[%clk 0:00:23.3]} 32... Nxf3+ {[%clk 0:00:20.6]} 33. Rxf3
{[%clk 0:00:25.2]} 33... f6 {[%clk 0:00:21.1]} 34. R3f2 {[%clk 0:00:24.4]} 34...
Bd7 {[%clk 0:00:21.9]} 35. Bf3 {[%clk 0:00:25.1]} 35... Ra8 {[%clk 0:00:22.2]}
36. Kg2 {[%clk 0:00:25.8]} 36... Ra2 {[%clk 0:00:22.6]} 37. Bd1 {[%clk
0:00:25.3]} 37... Re8 {[%clk 0:00:23.4]} 38. Re1 {[%clk 0:00:19.2]} 38... Rea8
{[%clk 0:00:23.2]} 39. Rfe2 {[%clk 0:00:19.5]} 39... Bc6 {[%clk 0:00:22.6]} 40.
Kg3 {[%clk 0:00:19.4]} 40... Re8 {[%clk 0:00:20]} 41. e5 {[%clk 0:00:19.4]}
41... fxe5 {[%clk 0:00:20.7]} 42. Rxe5 {[%clk 0:00:19.8]} 42... Rxe5 {[%clk
0:00:19.3]} 43. Rxe5 {[%clk 0:00:21.7]} 43... Kf7 {[%clk 0:00:20.6]} 44. Rxc5
{[%clk 0:00:21.8]} 44... Be8 {[%clk 0:00:16.9]} 45. Rf5+ {[%clk 0:00:21.5]}
45... Kg8 {[%clk 0:00:15.1]} 46. Rf1 {[%clk 0:00:22.4]} 46... Rb2 {[%clk
0:00:13.5]} 47. Kf4 {[%clk 0:00:21.3]} 47... g6 {[%clk 0:00:13.1]} 48. Ke5
{[%clk 0:00:21.6]} 48... Kg7 {[%clk 0:00:12.1]} 49. Kxd4 {[%clk 0:00:22.2]}
49... Bd7 {[%clk 0:00:12.6]} 50. Kc3 {[%clk 0:00:22.4]} 50... Rb1 {[%clk
0:00:13.2]} 51. Be2 {[%clk 0:00:22.4]} 51... Rxf1 {[%clk 0:00:13.7]} 52. Bxf1
{[%clk 0:00:24.3]} 52... h5 {[%clk 0:00:14.7]} 53. Be2 {[%clk 0:00:24.1]} 53...
h4 {[%clk 0:00:14.5]} 54. Bf3 {[%clk 0:00:24]} 54... Kf6 {[%clk 0:00:15]} 55.
Kd4 {[%clk 0:00:23.4]} 55... g5 {[%clk 0:00:14.3]} 56. c4 {[%clk 0:00:21.5]}
56... bxc4 {[%clk 0:00:14.9]} 57. dxc4 {[%clk 0:00:21.9]} 57... Ke6 {[%clk
0:00:14.4]} 58. b4 {[%clk 0:00:22.6]} 58... Kd6 {[%clk 0:00:15.4]} 59. c5+
{[%clk 0:00:22.4]} 59... Kc7 {[%clk 0:00:16.2]} 60. b5 {[%clk 0:00:22.6]} 60...
Bxb5 {[%clk 0:00:17]} 61. Ke5 {[%clk 0:00:22.2]} 61... Bf1 {[%clk 0:00:17]} 62.
Kf5 {[%clk 0:00:21.5]} 62... Bxh3 {[%clk 0:00:16]} 63. Kxg5 {[%clk 0:00:22.6]}
63... Bf1 {[%clk 0:00:12.5]} 64. Kxh4 {[%clk 0:00:23.1]} 64... Bd3 {[%clk
0:00:10.7]} 65. g5 {[%clk 0:00:23.1]} 65... Kd7 {[%clk 0:00:10.9]} 66. Kh5
{[%clk 0:00:22.7]} 66... Ke7 {[%clk 0:00:11.1]} 67. g6 {[%clk 0:00:23.2]} 67...
Kf8 {[%clk 0:00:09.8]} 68. Bd5 {[%clk 0:00:22.2]} 68... Bf5 {[%clk 0:00:05.5]}
69. Kg5 {[%clk 0:00:21.7]} 69... Bc8 {[%clk 0:00:04.7]} 70. Kf6 {[%clk
0:00:22.7]} 1

[Event "Open Nuevo Centro. Jornada 1"]
[Site "Chess.com"]
[Date "2020.06.19"]
[Round "9"]
[White "Garcia, Jhoel"]
[Black "Campos Gambuti, Luis Mar�a"]
[Result "0-1"]
[WhiteElo "2320"]
[BlackElo "2353"]
[TimeControl "180+2"]
[EndTime "12:17:52 PDT"]
[Termination "Victoria de Tangalangafacv por abandono"]

1. b3 {[%clk 0:03:01.9]} 1... b6 {[%clk 0:03:00.1]} 2. Bb2 {[%clk 0:03:03.2]}
2... Bb7 {[%clk 0:03:01.6]} 3. e3 {[%clk 0:03:04.8]} 3... e6 {[%clk 0:03:02.2]}
4. d4 {[%clk 0:03:06.1]} 4... d5 {[%clk 0:03:00.6]} 5. Nf3 {[%clk 0:03:07.4]}
5... Nf6 {[%clk 0:03:00.8]} 6. Nbd2 {[%clk 0:03:08.1]} 6... Nbd7 {[%clk
0:03:00.3]} 7. Bd3 {[%clk 0:03:09.1]} 7... Ne4 {[%clk 0:02:59.4]} 8. Qe2 {[%clk
0:03:09.1]} 8... f5 {[%clk 0:02:59.2]} 9. O-O {[%clk 0:03:06.8]} 9... Bd6 {[%clk
0:02:57.3]} 10. Ba6 {[%clk 0:03:04.7]} 10... Bxa6 {[%clk 0:02:52]} 11. Qxa6
{[%clk 0:03:05.9]} 11... O-O {[%clk 0:02:53.4]} 12. Rad1 {[%clk 0:03:01.2]}
12... Qe7 {[%clk 0:02:52.4]} 13. Ne5 {[%clk 0:02:57.6]} 13... Nxd2 {[%clk
0:02:00.6]} 14. Rxd2 {[%clk 0:02:57.4]} 14... f4 {[%clk 0:02:01.7]} 15. Qe2
{[%clk 0:02:44.7]} 15... fxe3 {[%clk 0:01:55.3]} 16. Qxe3 {[%clk 0:02:45.3]}
16... Nxe5 {[%clk 0:01:48.1]} 17. dxe5 {[%clk 0:02:46.3]} 17... Bc5 {[%clk
0:01:49.6]} 18. Qg3 {[%clk 0:02:36.5]} 18... Rf5 {[%clk 0:01:48.5]} 19. Kh1
{[%clk 0:02:24.5]} 19... Raf8 {[%clk 0:01:45.6]} 20. Re2 {[%clk 0:02:18.1]}
20... Ba3 {[%clk 0:01:38.7]} 21. Bc3 {[%clk 0:02:08.4]} 21... Bb4 {[%clk
0:01:38.9]} 22. Bb2 {[%clk 0:02:09.8]} 22... Ba3 {[%clk 0:01:39.8]} 23. Ba1
{[%clk 0:02:11]} 23... a5 {[%clk 0:01:39.1]} 24. f4 {[%clk 0:02:11]} 24... g5
{[%clk 0:01:32.9]} 25. Ref2 {[%clk 0:02:05.9]} 25... Qg7 {[%clk 0:01:21.1]} 26.
fxg5 {[%clk 0:01:24.3]} 26... Rxf2 {[%clk 0:01:17.8]} 27. Rxf2 {[%clk
0:01:23.8]} 27... Rxf2 {[%clk 0:01:18.6]} 28. Qxf2 {[%clk 0:01:25.2]} 28... Qxg5
{[%clk 0:01:20]} 29. Qf1 {[%clk 0:01:20.7]} 29... Qd2 {[%clk 0:01:00.3]} 30. h3
{[%clk 0:00:52.2]} 30... Qxc2 {[%clk 0:01:00.4]} 31. Bd4 {[%clk 0:00:53.6]}
31... Qe4 {[%clk 0:00:46.8]} 32. Qf2 {[%clk 0:00:45.4]} 32... Bc1 {[%clk
0:00:32]} 33. Qg3+ {[%clk 0:00:40.2]} 33... Kf7 {[%clk 0:00:30.4]} 34. Qf2+
{[%clk 0:00:15.5]} 34... Qf5 {[%clk 0:00:30.4]} 35. Qh4 {[%clk 0:00:14.1]} 35...
Bf4 {[%clk 0:00:27.6]} 36. Bc3 {[%clk 0:00:08.4]} 36... Bxe5 {[%clk 0:00:23.4]}
37. Bxe5 {[%clk 0:00:09.1]} 37... Qxe5 {[%clk 0:00:24]} 38. Qxh7+ {[%clk
0:00:10.5]} 38... Ke8 {[%clk 0:00:24.6]} 39. h4 {[%clk 0:00:10.1]} 39... d4
{[%clk 0:00:24.9]} 40. h5 {[%clk 0:00:09.4]} 40... Qf5 {[%clk 0:00:17.7]} 41.
Qg8+ {[%clk 0:00:09.3]} 41... Ke7 {[%clk 0:00:15.4]} 42. Qg7+ {[%clk 0:00:10.6]}
42... Qf7 {[%clk 0:00:14.5]} 43. Qxd4 {[%clk 0:00:10.9]} 43... Qxh5+ {[%clk
0:00:15.2]} 44. Kg1 {[%clk 0:00:12.2]} 44... Qd5 {[%clk 0:00:14.1]} 45. Qg7+
{[%clk 0:00:12.3]} 45... Kd6 {[%clk 0:00:14.8]} 46. Qf8+ {[%clk 0:00:13.5]}
46... Kc6 {[%clk 0:00:14.4]} 47. Kh1 {[%clk 0:00:11.4]} 47... Qh5+ {[%clk
0:00:14.3]} 48. Kg1 {[%clk 0:00:11.6]} 48... e5 {[%clk 0:00:15.7]} 49. Qe7
{[%clk 0:00:10.7]} 49... Qf5 {[%clk 0:00:13.3]} 50. Qe8+ {[%clk 0:00:08.3]}
50... Kd6 {[%clk 0:00:13]} 51. Qd8+ {[%clk 0:00:06.5]} 51... Qd7 {[%clk
0:00:13.5]} 52. Qf8+ {[%clk 0:00:07.5]} 52... Qe7 {[%clk 0:00:14.8]} 53. Qf3
{[%clk 0:00:07.5]} 53... e4 {[%clk 0:00:15.3]} 54. Qe3 {[%clk 0:00:08.4]} 54...
Qe5 {[%clk 0:00:16.4]} 55. Kh1 {[%clk 0:00:09.5]} 55... Qh5+ {[%clk 0:00:14.5]}
56. Kg1 {[%clk 0:00:10.5]} 56... Qf5 {[%clk 0:00:15.3]} 57. Qd4+ {[%clk
0:00:11]} 57... Ke6 {[%clk 0:00:15]} 58. Qd8 {[%clk 0:00:10.9]} 58... Qc5+
{[%clk 0:00:14.8]} 59. Kh1 {[%clk 0:00:10.7]} 59... Qe7 {[%clk 0:00:15.6]} 60.
Qd4 {[%clk 0:00:11]} 60... Kf5 {[%clk 0:00:14.8]} 61. Qd5+ {[%clk 0:00:10.6]}
61... Qe5 {[%clk 0:00:14.8]} 62. Qf7+ {[%clk 0:00:11.8]} 62... Kg4 {[%clk
0:00:15.1]} 63. Qg6+ {[%clk 0:00:11.1]} 63... Kf4 {[%clk 0:00:15.9]} 64. Qh6+
{[%clk 0:00:09.9]} 64... Qg5 {[%clk 0:00:16.4]} 65. Qe6 {[%clk 0:00:06]} 65...
e3 {[%clk 0:00:15.5]} 66. Qf7+ {[%clk 0:00:06.1]} 66... Ke5 {[%clk 0:00:15.6]}
67. Qe8+ {[%clk 0:00:06.7]} 67... Kd4 {[%clk 0:00:15.4]} 68. Qd7+ {[%clk
0:00:07.4]} 68... Ke4 {[%clk 0:00:14.3]} 69. Qc6+ {[%clk 0:00:07.6]} 69... Kd3
{[%clk 0:00:14.1]} 70. Qc4+ {[%clk 0:00:08.5]} 70... Kd2 {[%clk 0:00:15]} 71.
Qd4+ {[%clk 0:00:09.6]} 71... Ke2 {[%clk 0:00:14.1]} 72. Qc4+ {[%clk 0:00:10.5]}
72... Kd1 {[%clk 0:00:12.2]} 73. Qd3+ {[%clk 0:00:08.8]} 73... Kc1 {[%clk
0:00:12.6]} 74. Qe2 {[%clk 0:00:08.9]} 74... Qh4+ {[%clk 0:00:11.8]} 75. Kg1
{[%clk 0:00:09.3]} 75... Qf4 {[%clk 0:00:10.6]} 76. Qf1+ {[%clk 0:00:07.8]}
76... Qxf1+ {[%clk 0:00:10.1]} 77. Kxf1 {[%clk 0:00:08.2]} 77... Kd2 {[%clk
0:00:11.4]} 78. g4 {[%clk 0:00:08.4]} 78... e2+ {[%clk 0:00:12.8]} 79. Kg2
{[%clk 0:00:09.7]} 79... e1=Q {[%clk 0:00:14.2]} 80. Kh3 {[%clk 0:00:11.6]}
80... Qe7 {[%clk 0:00:15]} 81. g5 {[%clk 0:00:13.5]} 81... Qxg5 {[%clk
0:00:15.7]} 0